bitfinex/quotes_BTCUSD_20251113
["timestamp","ask_amount","ask_price","bid_price","bid_amount"]
[1763065679632,0.00013901,98699.0,98698.0,0.20263835]
[1763065679860,0.00013901,98699.0,98686.0,0.20266192]
[1763065680030,0.00013901,98699.0,98673.0,0.20268932]
[1763065680276,0.00013901,98699.0,98680.0,0.55650597]
[1763065680436,0.00013901,98699.0,98689.0,0.2026561]
[1763065680649,0.00013901,98699.0,98689.0,0.55650597]
[1763065680992,0.00013901,98699.0,98698.0,0.36641874]
[1763065681236,0.09816915,98740.0,98698.0,0.36641874]
[1763065681237,0.20999999,98770.0,98745.0,0.03318]
[1763065681461,0.13976,98809.0,98772.0,0.04341874]
[1763065681687,0.00046376,98809.0,98772.0,0.04341874]
[1763065681885,0.00419387,98773.0,98771.0,0.04341874]
[1763065682094,0.07512,98808.0,98771.0,0.04341874]
[1763065682301,0.55650597,98800.0,98760.0,0.01915069]
[1763065682512,0.002,98770.0,98761.0,0.04341874]
[1763065682728,0.002,98770.0,98737.0,0.03318]
[1763065682729,0.09816915,98761.0,98737.0,0.03318]
[1763065682929,0.42116915,98761.0,98730.0,0.01542174]
[1763065683145,0.42116915,98761.0,98690.0,0.02013272]
[1763065683146,0.03728,98731.0,98701.0,0.03318]
[1763065683344,0.03728,98731.0,98710.0,0.01749007]
[1763065683552,0.03728,98731.0,98701.0,0.03318]
[1763065683734,0.1124,98731.0,98700.0,0.01996421]
[1763065684154,0.1124,98731.0,98670.0,0.05560479]
[1763065684155,0.55650597,98720.0,98670.0,0.05560479]
[1763065684338,0.00046319,98720.0,98680.0,0.01534438]
[1763065684546,0.07512,98719.0,98680.0,0.01534438]
[1763065684970,0.07512,98719.0,98680.0,0.56753551]
[1763065685178,0.07512,98719.0,98680.0,0.01534438]
[1763065685350,0.55219113,98700.0,98680.0,0.01534438]
[1763065685548,0.09816915,98701.0,98670.0,0.04547]
[1763065685549,0.55219113,98690.0,98670.0,0.04547]
[1763065685752,0.09816915,98701.0,98650.0,0.01657544]
[1763065685753,0.12264,98700.0,98650.0,0.01657544]
[1763065685961,0.39812,98699.0,98660.0,0.01013581]
[1763065686138,0.04752,98700.0,98670.0,0.01013479]
[1763065686342,0.04639,98720.0,98700.0,0.01013171]
[1763065686527,0.09816915,98719.0,98681.0,0.04341874]
[1763065686730,0.09816915,98719.0,98685.0,0.36641874]
[1763065686731,0.09916915,98719.0,98685.0,0.36641874]
[1763065687012,0.09816915,98719.0,98684.0,0.323]
[1763065687161,0.002,98700.0,98685.0,0.04341874]
[1763065687366,0.002,98700.0,98699.0,0.04341874]
[1763065687590,0.04639,98735.0,98690.0,0.34108305]
[1763065687591,0.11361,98735.0,98701.0,0.04341874]
[1763065687819,0.11361,98735.0,98701.0,0.24604993]
[1763065688161,0.001,98719.0,98702.0,0.36641874]
[1763065688332,0.11361,98735.0,98701.0,0.04341874]
[1763065688532,0.04639,98735.0,98700.0,0.01544579]
[1763065688708,0.09816915,98723.0,98699.0,0.04341874]
[1763065689288,0.09816915,98721.0,98694.0,0.323]
[1763065689490,0.09816915,98718.0,98696.0,0.323]
[1763065689697,0.09816915,98718.0,98696.0,0.52564183]
[1763065689898,0.09816915,98718.0,98660.0,0.67757012]
[1763065690096,0.09816915,98703.0,98675.0,0.20268444]
[1763065690297,0.09816915,98703.0,98674.0,0.09816915]
[1763065690740,0.06722,98706.0,98670.0,0.02830174]
[1763065690741,0.06722,98706.0,98677.0,0.20268095]
[1763065690944,0.09816915,98687.0,98660.0,0.02001372]
[1763065691148,0.03758,98682.0,98640.0,0.01682936]
[1763065691356,0.03758,98682.0,98681.0,0.00113901]
[1763065691564,0.03758,98682.0,98625.0,0.20278811]
[1763065691774,0.06626,98681.0,98631.0,0.02341]
[1763065691992,0.38926,98681.0,98631.0,0.02341]
[1763065692190,0.09816915,98656.0,98630.0,0.00013909]
[1763065692538,0.11265,98655.0,98630.0,0.00013909]
[1763065692785,0.11265,98655.0,98632.0,0.20277235]
[1763065692991,0.06626,98654.0,98630.0,0.00013909]
[1763065693192,0.09816915,98641.0,98630.0,0.00013909]
[1763065693564,0.04639,98631.0,98630.0,0.00013909]
[1763065695391,0.09816915,98639.0,98630.0,0.00013909]
[1763065695791,0.323,98651.0,98630.0,0.00013909]
[1763065695792,0.06738,98652.0,98630.0,0.00013909]
[1763065696027,0.323,98669.0,98637.0,0.20276308]
[1763065696028,0.04639,98653.0,98637.0,0.20276308]
[1763065696233,0.14455915,98653.0,98630.0,0.00013909]
[1763065696439,0.002,98631.0,98630.0,0.00013909]
[1763065696658,0.06738,98678.0,98632.0,0.323]
[1763065696869,0.06738,98678.0,98640.0,0.01013787]
[1763065696870,0.003,98652.0,98640.0,0.01013787]
[1763065697099,0.003,98652.0,98648.0,0.20274105]
[1763065697325,0.06738,98678.0,98647.0,0.20274229]
[1763065697568,0.06738,98678.0,98633.0,0.41872]
[1763065697569,0.06738,98670.0,98630.0,0.01795518]
[1763065697777,0.09816915,98656.0,98630.0,0.00013909]
[1763065698195,0.09816915,98656.0,98612.0,0.20281463]
[1763065698196,0.04639,98631.0,98590.0,0.0164345]
[1763065698413,0.04639,98631.0,98570.0,0.01645755]
[1763065698414,0.20279779,98621.0,98570.0,0.01645755]
[1763065698590,0.04639,98604.0,98560.0,0.02273]
[1763065698805,0.04639,98604.0,98540.0,0.02809247]
[1763065698998,0.04639,98604.0,98526.0,0.09572]
[1763065698999,0.09816915,98571.0,98530.0,0.01690101]
[1763065699219,0.09816915,98571.0,98527.0,0.04507]
[1763065699220,0.04608,98560.0,98527.0,0.04507]
[1763065699578,0.04608,98560.0,98513.0,0.09572]
[1763065699764,0.04608,98560.0,98500.0,0.01015228]
[1763065699765,0.04608,98560.0,98520.0,0.01015022]
[1763065699968,0.04608,98560.0,98530.0,0.01014919]
[1763065700176,0.04608,98560.0,98559.0,0.0007416]
[1763065700997,0.04808,98560.0,98559.0,0.0007416]
[1763065702033,0.04608,98560.0,98559.0,0.0007416]
[1763065702278,0.001,98560.0,98559.0,0.0007416]
[1763065702704,0.01685,98581.0,98559.0,0.0007416]
[1763065702934,0.61116363,98620.0,98571.0,0.09572]
[1763065703154,0.04639,98631.0,98600.0,0.01014198]
[1763065703354,0.06306,98647.0,98610.0,0.01014095]
[1763065703764,0.01714,98640.0,98597.0,0.323]
[1763065703969,0.00023483,98621.0,98595.0,0.323]
[1763065704183,0.00023483,98621.0,98596.0,0.20284798]
[1763065704400,0.09816915,98620.0,98584.0,0.323]
[1763065704599,0.09816915,98605.0,98582.0,0.20287267]
[1763065704800,0.04639,98604.0,98575.0,0.20289063]
[1763065704974,0.04639,98604.0,98584.0,0.20287174]
[1763065705198,0.09816915,98603.0,98588.0,0.20286376]
[1763065705510,0.09816915,98603.0,98590.0,0.20285933]
[1763065705691,0.09816915,98603.0,98573.0,0.323]
[1763065705900,0.09816915,98603.0,98570.0,0.00914507]
[1763065706090,0.09816915,98603.0,98576.0,0.20288826]
[1763065706331,0.09816915,98588.0,98568.0,0.323]
[1763065706530,0.09816915,98572.0,98550.0,0.01014713]
[1763065706658,0.09816915,98572.0,98540.0,0.12279868]
[1763065706659,0.09816915,98572.0,98549.0,0.20294416]
[1763065706874,0.09816915,98572.0,98543.0,0.30112487]
[1763065707073,0.09816915,98572.0,98547.0,0.323]
[1763065707279,0.09816915,98572.0,98552.0,0.2029385]
[1763065707480,0.09816915,98572.0,98559.0,0.0007416]
[1763065707876,0.04522,98560.0,98559.0,0.0007416]
[1763065708290,0.09816915,98571.0,98559.0,0.0007416]
[1763065709248,0.09816915,98571.0,98559.0,0.20366505]
[1763065709453,0.09816915,98571.0,98559.0,0.0007416]
[1763065710117,0.01591619,98586.0,98559.0,0.0007416]
[1763065710325,0.01853,98560.0,98559.0,0.0007416]
[1763065710526,0.32319,98585.0,98559.0,0.0007416]
[1763065710734,0.09816915,98571.0,98559.0,0.0007416]
[1763065710904,0.09816915,98573.0,98559.0,0.0007416]
[1763065711552,0.09816915,98584.0,98560.0,0.0101461]
[1763065711758,0.09816915,98569.0,98559.0,0.0007416]
[1763065712165,0.09816915,98584.0,98559.0,0.0007416]
[1763065712365,0.09816915,98584.0,98560.0,0.09104]
[1763065712485,0.09816915,98584.0,98572.0,0.20289536]
[1763065712686,0.01432,98616.0,98573.0,0.04103]
[1763065712893,0.09816915,98588.0,98573.0,0.04103]
[1763065713099,0.01432,98616.0,98573.0,0.04103]
[1763065713324,0.29816915,98620.0,98573.0,0.04103]
[1763065713325,0.09816915,98588.0,98573.0,0.04103]
[1763065713529,0.14423915,98603.0,98573.0,0.13207]
[1763065713530,0.09816915,98603.0,98573.0,0.13207]
[1763065713731,0.09816915,98603.0,98589.0,0.20286033]
[1763065713928,0.09816915,98603.0,98574.0,0.09104]
[1763065714129,0.09816915,98584.0,98578.0,0.20288309]
[1763065714355,0.09816915,98603.0,98574.0,0.41404]
[1763065714586,0.09816915,98588.0,98574.0,0.323]
[1763065714758,0.09816915,98588.0,98559.0,0.00027795]
[1763065714997,0.01122,98587.0,98574.0,0.00046365]
[1763065715410,0.09816915,98588.0,98574.0,0.00046365]
[1763065715928,0.01122,98600.0,98574.0,0.00046365]
[1763065716691,0.01122,98600.0,98574.0,0.20335649]
[1763065716899,0.09816915,98588.0,98574.0,0.00046365]
[1763065717951,0.09816915,98586.0,98574.0,0.00035365]
[1763065718170,0.42116915,98586.0,98574.0,0.00035365]
[1763065718377,0.01108,98585.0,98574.0,0.00035365]
[1763065718718,0.20287267,98584.0,98574.0,0.00035365]
[1763065718916,0.323,98581.0,98574.0,0.00035365]
[1763065719124,0.323,98575.0,98574.0,0.00035365]
[1763065720193,0.01108,98584.0,98574.0,0.00035365]
[1763065720392,0.2,98580.0,98574.0,0.00035365]
[1763065720587,0.323,98579.0,98574.0,0.00035365]
[1763065721128,0.001,98575.0,98574.0,7.365e-05]
[1763065721536,0.323,98579.0,98574.0,7.365e-05]
[1763065721693,0.002,98579.0,98574.0,7.365e-05]
[1763065722067,0.09816915,98586.0,98574.0,7.365e-05]
[1763065722461,0.001,98575.0,98574.0,7.365e-05]
[1763065723485,0.01108,98583.0,98574.0,7.365e-05]
[1763065723709,0.323,98575.0,98574.0,7.365e-05]
[1763065724043,0.33237444,98575.0,98574.0,7.365e-05]
[1763065724262,0.33237653,98575.0,98574.0,7.365e-05]
[1763065724889,0.37579527,98575.0,98574.0,7.365e-05]
[1763065725084,0.36841874,98575.0,98574.0,7.365e-05]
[1763065725285,0.05479575,98575.0,98574.0,7.365e-05]
[1763065725492,0.01137701,98575.0,98574.0,7.365e-05]
[1763065725894,0.01137662,98575.0,98574.0,7.365e-05]
[1763065726096,0.02730119,98575.0,98574.0,7.365e-05]
[1763065726396,0.02530121,98575.0,98574.0,7.365e-05]
[1763065726913,0.02830121,98575.0,98574.0,7.365e-05]
[1763065727070,0.02531703,98575.0,98574.0,7.365e-05]
[1763065727267,0.02731703,98575.0,98574.0,7.365e-05]
[1763065727675,0.01591833,98575.0,98574.0,7.365e-05]
[1763065727871,0.01691833,98575.0,98574.0,7.365e-05]
[1763065728182,0.323,98577.0,98574.0,7.365e-05]
[1763065728606,0.001,98575.0,98574.0,7.365e-05]
[1763065730015,0.01040338,98575.0,98574.0,7.365e-05]
[1763065730212,0.00940338,98575.0,98574.0,7.365e-05]
[1763065730436,0.09816915,98578.0,98574.0,7.365e-05]
[1763065730710,0.26299069,98576.0,98574.0,7.365e-05]
[1763065730887,0.2,98570.0,98559.0,0.000219]
[1763065731066,0.14768915,98560.0,98559.0,0.00013912]
[1763065731248,0.09816915,98541.0,98511.0,0.09815713]
[1763065731472,0.01108,98559.0,98526.0,0.20299056]
[1763065731673,0.09816915,98545.0,98521.0,0.2030024]
[1763065731848,0.09816915,98545.0,98522.0,0.20300034]
[1763065732049,0.01108,98559.0,98530.0,0.01014919]
[1763065732255,0.09816915,98545.0,98531.0,0.2029818]
[1763065732869,0.09816915,98545.0,98521.0,0.20300213]
[1763065733105,0.09816915,98545.0,98521.0,0.2030024]
[1763065733251,0.09816915,98545.0,98523.0,0.20299828]
[1763065733465,0.09816915,98545.0,98520.0,0.01015022]
[1763065733466,0.01208,98559.0,98530.0,0.01014919]
[1763065733686,0.09816915,98545.0,98530.0,0.01014919]
[1763065734076,0.09816915,98545.0,98531.0,0.20298052]
[1763065734281,0.64768915,98560.0,98531.0,0.20298052]
[1763065734282,0.64768915,98560.0,98535.0,0.20297204]
[1763065734674,0.64768915,98560.0,98530.0,0.01014919]
[1763065734822,0.64768915,98560.0,98538.0,0.20296596]
[1763065735012,0.64768915,98560.0,98540.0,0.20296243]
[1763065735390,0.54952,98560.0,98542.0,0.20295885]
[1763065735594,0.5,98560.0,98530.0,0.10118919]
[1763065735851,0.09816915,98559.0,98531.0,0.09104]
[1763065736268,0.09929,98558.0,98527.0,0.323]
[1763065736667,0.09929,98558.0,98527.0,0.32313923]
[1763065736950,0.09929,98558.0,98527.0,0.00013923]
[1763065737592,0.09929,98558.0,98533.0,0.20297671]
[1763065737793,0.09929,98558.0,98527.0,0.00013923]
[1763065738030,0.09929,98558.0,98535.0,0.20297293]
[1763065738229,0.09929,98558.0,98532.0,0.20297952]
[1763065738364,0.09929,98558.0,98527.0,0.00013923]
[1763065738568,0.09816915,98559.0,98528.0,0.09104]
[1763065738788,0.09816915,98559.0,98531.0,0.20298044]
[1763065739137,0.09816915,98559.0,98540.0,0.20296267]
[1763065739313,0.09816915,98559.0,98530.0,0.01014919]
[1763065739314,0.09816915,98559.0,98534.0,0.20297546]
[1763065739514,0.09816915,98559.0,98530.0,0.01014919]
[1763065740082,0.09816915,98559.0,98528.0,0.09104]
[1763065740286,0.09816915,98559.0,98530.0,0.01014919]
[1763065740713,0.5,98560.0,98530.0,0.01014919]
[1763065740714,0.5,98560.0,98558.0,0.04312]
[1763065741350,0.5,98560.0,98559.0,0.61912413]
[1763065741552,0.5,98560.0,98559.0,0.45961874]
[1763065741770,0.5,98560.0,98559.0,0.36641874]
[1763065741984,0.09816915,98620.0,98559.0,0.36641874]
[1763065741985,0.09816915,98620.0,98590.0,0.01014301]
[1763065742207,0.09816915,98619.0,98592.0,0.323]
[1763065742425,0.09816915,98619.0,98591.0,0.02632]
[1763065742637,0.09816915,98618.0,98598.0,0.20284205]
[1763065743035,0.09816915,98618.0,98598.0,0.20284217]
[1763065743226,0.09816915,98618.0,98601.0,0.20283725]
[1763065743434,0.00013884,98620.0,98595.0,0.323]
[1763065743635,0.00013884,98620.0,98617.0,0.04312]
[1763065743836,0.00013884,98620.0,98618.0,0.20280135]
[1763065744419,0.00013884,98620.0,98619.0,0.0932]
[1763065744556,0.00013884,98620.0,98619.0,0.45961874]
[1763065744950,0.5,98630.0,98619.0,0.39631882]
[1763065745144,0.5,98630.0,98629.0,0.56919885]
[1763065745145,0.46998299,98630.0,98629.0,0.56919885]
[1763065745344,0.43950233,98630.0,98629.0,0.56919885]
[1763065745598,0.30396527,98630.0,98629.0,0.56919885]
[1763065745797,0.33050061,98630.0,98629.0,0.56919885]
[1763065745994,0.29901495,98630.0,98629.0,0.56919885]
[1763065746259,0.26953429,98630.0,98629.0,0.36641874]
[1763065746442,0.23805363,98630.0,98629.0,0.36641874]
[1763065746675,0.00046365,98630.0,98629.0,0.36641874]
[1763065746968,0.04767,98671.0,98640.0,0.01013787]
[1763065747175,0.00013906,98671.0,98647.0,0.04341874]
[1763065747374,0.04780906,98671.0,98645.0,0.04341874]
[1763065747816,0.04780906,98671.0,98644.0,0.323]
[1763065748051,0.09984,98670.0,98640.0,0.01692886]
[1763065748258,0.09984,98670.0,98639.0,0.04341874]
[1763065748445,0.04780906,98671.0,98639.0,0.04341874]
[1763065748673,0.00013906,98671.0,98646.0,0.20274494]
[1763065748878,0.00013906,98671.0,98640.0,0.37121]
[1763065748879,0.09816915,98670.0,98640.0,0.37121]
[1763065749093,0.00013906,98671.0,98640.0,0.38134787]
[1763065749299,0.00013906,98671.0,98640.0,0.01550906]
[1763065749300,0.09816915,98670.0,98640.0,0.01550906]
[1763065749512,0.09984,98669.0,98630.0,0.04341874]
[1763065749739,0.09816915,98655.0,98611.0,0.04821]
[1763065749959,0.09816915,98655.0,98622.0,0.20279268]
[1763065750160,0.04767,98654.0,98622.0,0.323]
[1763065750384,0.04767,98663.0,98630.0,0.0101389]
[1763065750598,0.323,98679.0,98641.0,0.04341874]
[1763065750825,0.09816915,98667.0,98641.0,0.18911874]
[1763065751040,0.09816915,98667.0,98630.0,0.06582745]
[1763065751275,0.14751,98670.0,98640.0,0.01013787]
[1763065751487,0.09816915,98666.0,98640.0,0.01013787]
[1763065751698,0.09816915,98666.0,98631.0,0.41462874]
[1763065751699,0.09816915,98666.0,98639.0,0.20275765]
[1763065751912,0.09816915,98666.0,98631.0,0.09162874]
[1763065752132,0.09816915,98666.0,98633.0,0.36641874]
[1763065752346,0.09984,98665.0,98633.0,0.323]
[1763065752601,0.04767,98632.0,98610.0,0.01764607]
[1763065752792,0.04767,98612.0,98592.0,0.07792078]
[1763065753241,0.04767,98612.0,98590.0,0.01883794]
[1763065753454,0.04767,98612.0,98592.0,0.04341874]
[1763065753659,0.09984,98624.0,98590.0,0.02898095]
[1763065753911,0.62004579,98630.0,98608.0,0.09816915]
[1763065754125,0.0002,98690.0,98650.0,0.01013684]
[1763065754542,0.0002,98690.0,98660.0,0.01733678]
[1763065754543,0.001555,98684.0,98660.0,0.01733678]
[1763065754752,0.09984,98683.0,98652.0,0.04341874]
[1763065754960,0.09984,98683.0,98654.0,0.323]
[1763065755354,0.00013909,98683.0,98654.0,0.323]
[1763065755598,0.09816915,98688.0,98670.0,0.01013479]
[1763065755804,0.09816915,98688.0,98670.0,0.00013909]
[1763065755997,0.09816915,98688.0,98674.0,0.20268735]
[1763065756137,0.09816915,98688.0,98670.0,0.00013909]
[1763065757298,0.09816915,98686.0,98670.0,0.00013909]
[1763065757501,0.09816915,98688.0,98676.0,0.2026829]
[1763065757722,0.09816915,98688.0,98670.0,0.00013909]
[1763065757931,0.04767,98700.0,98670.0,0.01027388]
[1763065758143,0.0002,98710.0,98682.0,0.323]
[1763065758346,0.09896,98709.0,98682.0,0.323]
[1763065758525,0.0002,98710.0,98683.0,0.09254]
[1763065758725,0.0002,98710.0,98692.0,0.20264862]
[1763065758928,0.0002,98710.0,98683.0,0.09254]
[1763065759179,0.00023454,98693.0,98691.0,0.20265248]
[1763065759369,0.00023454,98693.0,98692.0,0.03338]
[1763065759542,0.00023454,98693.0,98692.0,0.23603067]
[1763065759961,0.00023454,98693.0,98692.0,0.32857067]
[1763065760161,0.00023454,98693.0,98692.0,0.63516295]
[1763065760624,0.0002,98710.0,98709.0,0.20261576]
[1763065760747,0.0002,98710.0,98694.0,0.24606407]
[1763065760954,0.0002,98710.0,98693.0,0.323]
[1763065761176,0.0002,98710.0,98694.0,0.20264656]
[1763065761384,0.0002,98710.0,98695.0,0.323]
[1763065761591,0.0002,98710.0,98680.0,0.0618822]
[1763065761829,0.0002,98710.0,98670.0,0.66826579]
[1763065761830,0.19541915,98709.0,98673.0,0.323]
[1763065762163,0.21131528,98709.0,98673.0,0.00013909]
[1763065762344,0.11406528,98709.0,98694.0,0.001]
[1763065762544,0.21131528,98709.0,98679.0,0.323]
[1763065763294,0.21131528,98709.0,98680.0,0.01013376]
[1763065763498,0.21131528,98709.0,98679.0,0.323]
[1763065763715,0.21131528,98709.0,98682.0,0.20267013]
[1763065764172,0.11406528,98709.0,98681.0,0.20267242]
[1763065764386,0.01589613,98709.0,98683.0,0.09254]
[1763065764522,0.0002,98710.0,98699.0,0.20263562]
[1763065764738,0.0002,98710.0,98698.0,0.20263757]
[1763065764941,0.09816915,98709.0,98683.0,0.09254]
[1763065765138,0.0002,98710.0,98683.0,0.09254]
[1763065765343,0.0002,98710.0,98688.0,0.323]
[1763065765610,0.0002,98710.0,98693.0,0.20264722]
[1763065765815,0.0002,98710.0,98684.0,0.09254]
[1763065766004,0.0002,98710.0,98689.0,0.20265683]
[1763065766147,0.0002,98710.0,98690.0,0.323]
[1763065766353,0.00023451,98702.0,98690.0,0.323]
[1763065766615,0.00023451,98702.0,98683.0,0.20266915]
[1763065766795,0.00023451,98702.0,98682.0,0.09254]
[1763065767013,0.00023451,98702.0,98701.0,0.01443]
[1763065768397,0.00023451,98702.0,98701.0,0.01643]
[1763065768638,0.00023451,98702.0,98701.0,0.002]
[1763065770020,0.2,98700.0,98673.0,0.00013909]
[1763065770247,0.01145,98674.0,98673.0,0.00013909]
[1763065771692,0.01145,98674.0,98673.0,0.00113909]
[1763065771910,0.2,98660.0,98620.0,0.01892399]
[1763065772116,0.2,98660.0,98629.0,0.20277875]
[1763065772117,0.09816915,98655.0,98629.0,0.20277875]
[1763065772232,0.09816915,98655.0,98632.0,0.20277377]
[1763065772442,0.09816915,98655.0,98621.0,0.09021]
[1763065772638,0.09279974,98655.0,98626.0,0.20278491]
[1763065772843,0.09279974,98655.0,98632.0,0.20277201]
[1763065773038,0.09279974,98655.0,98622.0,0.09021]
[1763065773479,0.09279974,98655.0,98628.0,0.20278032]
[1763065773692,0.09279974,98655.0,98630.0,0.20277793]
[1763065773883,0.09279974,98655.0,98622.0,0.09021]
[1763065774064,0.09992,98654.0,98631.0,0.20277585]
[1763065774264,0.09992,98654.0,98630.0,0.20277644]
[1763065774460,0.09992,98654.0,98622.0,0.001]
[1763065774684,0.09992,98654.0,98620.0,0.323]
[1763065775228,0.09992,98654.0,98622.0,0.001]
[1763065775462,0.09816915,98640.0,98622.0,0.001]
[1763065775870,0.04691,98639.0,98622.0,0.001]
[1763065776287,0.09816915,98637.0,98622.0,0.001]
[1763065776767,0.09816915,98637.0,98620.0,0.55224028]
[1763065776931,0.09816915,98637.0,98618.0,0.00238247]
[1763065777305,0.09279974,98655.0,98620.0,0.56238021]
[1763065777524,0.09816915,98640.0,98620.0,0.55224028]
[1763065777739,0.09816915,98640.0,98622.0,0.001]
[1763065778010,0.09816915,98640.0,98619.0,0.20280067]
[1763065778228,0.09816915,98640.0,98618.0,0.00238247]
[1763065778447,0.09816915,98639.0,98620.0,0.76517735]
[1763065778645,0.09816915,98639.0,98620.0,0.55224028]
[1763065779078,0.09992,98654.0,98620.0,0.56238021]
[1763065779285,0.09816915,98640.0,98620.0,0.56238021]
[1763065779494,0.09816915,98640.0,98620.0,0.55224028]
[1763065779689,0.09992,98654.0,98622.0,0.2027945]
[1763065779896,0.09992,98654.0,98634.0,0.20276901]
[1763065780293,0.09992,98654.0,98633.0,0.25175031]
[1763065780507,0.09992,98654.0,98633.0,0.04898]
[1763065780974,0.09279974,98655.0,98633.0,0.04898]
[1763065781176,0.09279974,98655.0,98634.0,0.20276983]
[1763065781390,0.09279974,98655.0,98636.0,0.20276495]
[1763065781604,0.09279974,98655.0,98633.0,0.04898]
[1763065781814,0.09279974,98655.0,98633.0,0.2517512]
[1763065782014,0.09279974,98655.0,98633.0,0.04898]
[1763065782238,0.04691,98657.0,98643.0,0.20275006]
[1763065782438,0.09816915,98656.0,98640.0,0.55224028]
[1763065782593,0.09816915,98656.0,98642.0,0.20275264]
[1763065782800,0.00013888,98660.0,98641.0,0.09021]
[1763065783000,0.00013888,98660.0,98630.0,0.0101389]
[1763065783001,0.00013888,98660.0,98650.0,0.55224028]
[1763065783204,0.00013888,98660.0,98651.0,0.04898]
[1763065783603,0.09816915,98659.0,98640.0,0.55324028]
[1763065783847,0.19808915,98659.0,98635.0,0.07445813]
[1763065784213,0.19808915,98659.0,98650.0,0.001]
[1763065784394,0.09992,98659.0,98640.0,0.55224028]
[1763065784594,0.09816915,98658.0,98640.0,0.55224028]
[1763065785921,0.09816915,98658.0,98640.0,0.53205028]
[1763065786343,0.09816915,98658.0,98640.0,0.53305028]
[1763065786520,0.09816915,98658.0,98640.0,0.53205028]
[1763065786727,0.00013888,98660.0,98640.0,0.53205028]
[1763065786921,0.00013888,98660.0,98640.0,0.53305028]
[1763065786922,0.09816915,98659.0,98640.0,0.53305028]
[1763065787145,0.09816915,98659.0,98640.0,0.53205028]
[1763065787521,0.09816915,98659.0,98640.0,0.53305028]
[1763065787721,0.09816915,98659.0,98640.0,0.53205028]
[1763065787935,0.04691,98641.0,98626.0,0.04898]
[1763065788137,0.09992,98658.0,98640.0,0.001]
[1763065788397,0.04691,98657.0,98640.0,0.001]
[1763065789259,0.09992,98656.0,98630.0,0.55224028]
[1763065789462,0.09992,98656.0,98630.0,0.62713554]
[1763065789663,0.09992,98656.0,98640.0,0.001]
[1763065789870,0.09992,98656.0,98630.0,0.62713554]
[1763065790048,0.04691,98657.0,98630.0,0.62713554]
[1763065790248,0.09816915,98656.0,98640.0,0.55324028]
[1763065790476,0.04691,98657.0,98640.0,0.55324028]
[1763065790477,0.04691,98657.0,98646.0,0.2027447]
[1763065790691,0.04691,98657.0,98647.0,0.55224028]
[1763065791288,0.00013888,98660.0,98640.0,0.55324028]
[1763065791500,0.00013888,98660.0,98641.0,0.09021]
[1763065791719,0.09816915,98659.0,98640.0,0.55324028]
[1763065791986,0.00013888,98660.0,98641.0,0.09021]
[1763065792210,0.00013888,98660.0,98650.0,0.55224028]
[1763065792376,0.00013888,98660.0,98641.0,0.09021]
[1763065792567,0.00013888,98660.0,98659.0,0.04898]
[1763065792771,0.00013888,98660.0,98650.0,0.55224028]
[1763065793654,0.00013888,98660.0,98641.0,0.09021]
[1763065793855,0.00013888,98660.0,98659.0,0.001]
[1763065794040,0.00013888,98660.0,98641.0,0.09021]
[1763065794993,0.00013888,98660.0,98640.0,0.55224028]
[1763065795329,0.00013888,98660.0,98650.0,0.55324028]
[1763065795533,0.00013888,98660.0,98650.0,0.55224028]
[1763065796313,0.00013888,98660.0,98659.0,0.06646]
[1763065796954,0.00013888,98660.0,98659.0,0.01013067]
[1763065797209,0.00013888,98660.0,98659.0,0.323]
[1763065797565,0.00013888,98660.0,98659.0,0.36641874]
[1763065798011,0.00013888,98660.0,98659.0,0.40038903]
[1763065798347,0.00013888,98660.0,98659.0,0.07738903]
[1763065798484,0.00013888,98660.0,98659.0,0.07938903]
[1763065798824,0.00013888,98660.0,98659.0,0.04898]
[1763065799025,0.00013888,98660.0,98659.0,0.44727127]
[1763065799255,0.00013888,98660.0,98659.0,0.37398]
[1763065799475,0.00013888,98660.0,98659.0,0.37198]
[1763065799878,0.00013888,98660.0,98659.0,0.04898]
[1763065800375,0.00013888,98660.0,98659.0,0.05098]
[1763065800593,0.00013888,98660.0,98659.0,0.09439874]
[1763065800787,0.00013888,98660.0,98659.0,0.05098]
[1763065800990,0.00013888,98660.0,98659.0,0.41739874]
[1763065801219,0.00013888,98660.0,98659.0,0.44707127]
[1763065801336,0.00013888,98660.0,98653.0,0.07309127]
[1763065801528,0.00013888,98660.0,98646.0,0.07309127]
[1763065801731,0.00013888,98660.0,98642.0,0.18972829]
[1763065801732,0.00013888,98660.0,98659.0,0.002]
[1763065802602,0.00013888,98660.0,98659.0,0.04643]
[1763065802754,0.00013888,98660.0,98659.0,0.04743]
[1763065803161,0.00013888,98660.0,98659.0,0.04643]
[1763065803378,0.2002,98710.0,98659.0,0.04643]
[1763065803379,0.0002,98710.0,98690.0,0.55224028]
[1763065803585,0.00037352,98702.0,98701.0,0.04643]
[1763065803981,0.00037352,98702.0,98701.0,0.11253]
[1763065804593,0.00037352,98702.0,98701.0,0.04643]
[1763065804973,0.00037352,98702.0,98689.0,0.04643]
[1763065805377,0.00037352,98702.0,98701.0,0.002]
[1763065805552,0.00037352,98702.0,98701.0,0.0661]
[1763065805750,0.00037352,98702.0,98701.0,0.0681]
[1763065805950,0.00037352,98702.0,98701.0,0.36841874]
[1763065806189,0.0002,98710.0,98701.0,0.36641874]
[1763065806395,0.0002,98760.0,98700.0,0.01652954]
[1763065806396,0.0002,98760.0,98738.0,0.55224028]
[1763065806604,0.09816915,98749.0,98728.0,0.04341874]
[1763065806819,0.09816915,98749.0,98731.0,0.323]
[1763065807236,0.04973,98759.0,98731.0,0.323]
[1763065807433,0.04674,98732.0,98719.0,0.04643]
[1763065807840,0.18829915,98748.0,98719.0,0.04643]
[1763065808055,0.04973,98759.0,98721.0,0.323]
[1763065808254,0.09816915,98754.0,98721.0,0.323]
[1763065808428,0.09816915,98754.0,98722.0,0.09519]
[1763065809055,0.09253,98753.0,98722.0,0.09519]
[1763065809378,0.09253,98753.0,98721.0,0.07640615]
[1763065809583,0.09253,98753.0,98720.0,0.323]
[1763065809797,0.09253,98753.0,98721.0,0.09519]
[1763065809998,0.09816915,98754.0,98721.0,0.09519]
[1763065810281,0.04973,98759.0,98725.0,0.20258263]
[1763065810458,0.09816915,98753.0,98721.0,0.09519]
[1763065810701,0.09816915,98753.0,98721.0,0.62077917]
[1763065810971,0.09816915,98753.0,98727.0,0.20257743]
[1763065811203,0.09816915,98753.0,98721.0,0.323]
[1763065811403,0.04973,98759.0,98740.0,0.55162063]
[1763065811596,0.09816915,98753.0,98721.0,0.3973667]
[1763065811716,0.09816915,98753.0,98722.0,0.04341874]
[1763065811918,0.19069915,98753.0,98722.0,0.04341874]